[Event "*** Titled Tuesday 3|2 Blitz"]
[Site "Chess.com"]
[Date "2015.03.03"]
[Round "9"]
[White "Mugzyyy"]
[Black "megarompa"]
[Result "0-1"]
[WhiteElo "2449"]
[BlackElo "2683"]
[TimeControl "180+2"]
[EndTime "12:58:54 PST"]
[Termination "megarompa won by resignation"]

1. d4 {[%clk 0:03:00]} 1... d5 {[%clk 0:02:53.5]} 2. c4 {[%clk 0:03:00.9]} 2...
dxc4 {[%clk 0:02:50.9]} 3. e4 {[%clk 0:03:01.6]} 3... Nf6 {[%clk 0:02:52.8]} 4.
e5 {[%clk 0:03:02.4]} 4... Nd5 {[%clk 0:02:53.9]} 5. Bxc4 {[%clk 0:03:04.1]}
5... Nb6 {[%clk 0:02:54.9]} 6. Bd3 {[%clk 0:03:04.8]} 6... Nc6 {[%clk
0:02:55.9]} 7. Ne2 {[%clk 0:03:06.1]} 7... Bg4 {[%clk 0:02:44.3]} 8. Be3 {[%clk
0:03:06.8]} 8... e6 {[%clk 0:02:27.4]} 9. Nbc3 {[%clk 0:03:00]} 9... Be7 {[%clk
0:02:28.2]} 10. a3 {[%clk 0:02:47.1]} 10... a5 {[%clk 0:02:25.8]} 11. Qc2 {[%clk
0:02:45.4]} 11... Bh5 {[%clk 0:02:24.2]} 12. Nf4 {[%clk 0:02:23.6]} 12... Bg6
{[%clk 0:02:24.8]} 13. Nxg6 {[%clk 0:02:24.9]} 13... hxg6 {[%clk 0:02:22.9]} 14.
O-O-O {[%clk 0:02:26.5]} 14... Nd5 {[%clk 0:02:16.1]} 15. Nxd5 {[%clk 0:02:21]}
15... exd5 {[%clk 0:02:18]} 16. e6 {[%clk 0:02:07.2]} 16... fxe6 {[%clk
0:02:15.6]} 17. Bxg6+ {[%clk 0:02:08.5]} 17... Kd7 {[%clk 0:02:17.5]} 18. Kb1
{[%clk 0:02:10.1]} 18... Qf8 {[%clk 0:02:12.3]} 19. Rc1 {[%clk 0:02:04.5]} 19...
Ra6 {[%clk 0:02:10.3]} 20. Bd3 {[%clk 0:01:47]} 20... Rb6 {[%clk 0:02:11.1]} 21.
Ka1 {[%clk 0:01:45]} 21... Bxa3 {[%clk 0:02:01.7]} 22. Rb1 {[%clk 0:01:34.6]}
22... Bb4 {[%clk 0:01:59.1]} 23. Qa4 {[%clk 0:01:34]} 23... g5 {[%clk 0:01:48]}
24. Rbc1 {[%clk 0:01:29.7]} 24... Bd6 {[%clk 0:01:43.8]} 25. Bb5 {[%clk
0:01:26.7]} 25... Bf4 {[%clk 0:01:44.6]} 26. Rc5 {[%clk 0:01:21.2]} 26... Bxe3
{[%clk 0:01:44.8]} 27. fxe3 {[%clk 0:01:22.2]} 27... Qf2 {[%clk 0:01:42.9]} 28.
Rhc1 {[%clk 0:01:16.9]} 28... Qd2 {[%clk 0:01:29.5]} 29. e4 {[%clk 0:01:05.6]}
29... Kc8 {[%clk 0:01:14.9]} 30. exd5 {[%clk 0:00:54]} 30... exd5 {[%clk
0:01:16.8]} 31. R5c2 {[%clk 0:00:48.2]} 31... Qb4 {[%clk 0:01:06.9]} 32. Bxc6
{[%clk 0:00:44.6]} 32... bxc6 {[%clk 0:01:02.8]} 33. Qxb4 {[%clk 0:00:37.5]}
33... axb4 {[%clk 0:01:04.7]} 34. h3 {[%clk 0:00:38.6]} 34... Rh4 {[%clk
0:00:53.3]} 35. Rxc6 {[%clk 0:00:30.7]} 35... Rxc6 {[%clk 0:00:50.5]} 36. Rxc6
{[%clk 0:00:32.3]} 36... Rxd4 {[%clk 0:00:49.3]} 37. Ka2 {[%clk 0:00:27.3]}
37... Rd2 {[%clk 0:00:45.1]} 38. g4 {[%clk 0:00:26.4]} 38... Rd3 {[%clk
0:00:42.8]} 39. Rg6 {[%clk 0:00:25]} 39... Rxh3 {[%clk 0:00:39.5]} 40. Rxg5
{[%clk 0:00:26.5]} 40... c6 {[%clk 0:00:41.2]} 41. Rg8+ {[%clk 0:00:20.8]} 41...
Kc7 {[%clk 0:00:42.4]} 42. g5 {[%clk 0:00:22.4]} 42... Kb6 {[%clk 0:00:42.4]}
43. g6 {[%clk 0:00:23.5]} 43... Rg3 {[%clk 0:00:43.3]} 44. Kb1 {[%clk
0:00:21.1]} 44... b3 {[%clk 0:00:43.7]} 45. Kc1 {[%clk 0:00:22.6]} 45... Rg2
{[%clk 0:00:44.4]} 46. Rb8+ {[%clk 0:00:18.1]} 46... Kc5 {[%clk 0:00:45.2]} 47.
Rxb3 {[%clk 0:00:19.8]} 47... Rg1+ {[%clk 0:00:46.3]} 48. Kd2 {[%clk 0:00:20.9]}
48... Rg2+ {[%clk 0:00:48.2]} 49. Kc1 {[%clk 0:00:22]} 49... Rxg6 {[%clk
0:00:50.1]} 50. Rh3 {[%clk 0:00:23.6]} 50... Rg1+ {[%clk 0:00:50.5]} 51. Kc2
{[%clk 0:00:24.9]} 51... Rg2+ {[%clk 0:00:52.4]} 52. Kc3 {[%clk 0:00:22.2]}
52... Rg4 {[%clk 0:00:54.3]} 53. Rh6 {[%clk 0:00:18.8]} 53... Kb5 {[%clk
0:00:55.2]} 54. b3 {[%clk 0:00:18.4]} 54... c5 {[%clk 0:00:55.1]} 55. Rh8 {[%clk
0:00:17.3]} 55... Rg3+ {[%clk 0:00:55.4]} 56. Kc2 {[%clk 0:00:18.7]} 56... Rg2+
{[%clk 0:00:54.6]} 57. Kd3 {[%clk 0:00:20.1]} 57... Rg3+ {[%clk 0:00:55]} 58.
Kc2 {[%clk 0:00:21.2]} 58... d4 {[%clk 0:00:52.3]} 59. Rh6 {[%clk 0:00:20.7]}
59... Rc3+ {[%clk 0:00:51.1]} 60. Kb2 {[%clk 0:00:21.9]} 60... Rf3 {[%clk
0:00:52.2]} 61. Kc2 {[%clk 0:00:19.5]} 61... Rf2+ {[%clk 0:00:53.5]} 62. Kc1
{[%clk 0:00:19.7]} 62... Kb4 {[%clk 0:00:53.9]} 63. Rc6 {[%clk 0:00:18.8]} 63...
Rh2 {[%clk 0:00:54]} 64. Kd1 {[%clk 0:00:19.5]} 64... d3 {[%clk 0:00:53.3]} 65.
Rc8 {[%clk 0:00:19.4]} 65... Rb2 {[%clk 0:00:49.1]} 66. Kc1 {[%clk 0:00:10.4]}
66... Rc2+ {[%clk 0:00:49.8]} 67. Kd1 {[%clk 0:00:11]} 67... Kxb3 {[%clk
0:00:51.2]} 68. Rd8 {[%clk 0:00:12.5]} 68... c4 {[%clk 0:00:51.7]} 69. Rb8+
{[%clk 0:00:13.9]} 69... Kc3 {[%clk 0:00:53.1]} 70. Ra8 {[%clk 0:00:15.5]} 70...
Rd2+ {[%clk 0:00:54.1]} 71. Kc1 {[%clk 0:00:16.2]} 71... Rh2 {[%clk 0:00:55.4]}
72. Kb1 {[%clk 0:00:17.8]} 72... Rh1+ {[%clk 0:00:56.1]} 73. Ka2 {[%clk
0:00:19.3]} 73... d2 {[%clk 0:00:57.7]} 0-1

[Event "*** Titled Tuesday 3|2 Blitz"]
[Site "Chess.com"]
[Date "2015.03.03"]
[Round "9"]
[White "1stSecond"]
[Black "AndreyOstrovskiy"]
[Result "1/2-1/2"]
[WhiteElo "2372"]
[BlackElo "2357"]
[TimeControl "180+2"]
[EndTime "12:59:06 PST"]
[Termination "Game drawn - insufficient material"]

1. d4 {[%clk 0:02:59.7]} 1... Nf6 {[%clk 0:02:58.6]} 2. c4 {[%clk 0:02:59.8]}
2... e6 {[%clk 0:02:59.9]} 3. Nf3 {[%clk 0:03:00.7]} 3... b6 {[%clk 0:03:00.6]}
4. g3 {[%clk 0:03:01.9]} 4... Ba6 {[%clk 0:03:01.6]} 5. Nbd2 {[%clk 0:03:00]}
5... c6 {[%clk 0:03:01.2]} 6. Bg2 {[%clk 0:03:00.4]} 6... d5 {[%clk 0:03:02.7]}
7. O-O {[%clk 0:03:01.2]} 7... Nbd7 {[%clk 0:03:02.4]} 8. b3 {[%clk 0:03:00.9]}
8... Be7 {[%clk 0:03:02.5]} 9. Bb2 {[%clk 0:03:01.9]} 9... O-O {[%clk
0:03:03.4]} 10. Rc1 {[%clk 0:03:02.8]} 10... Rc8 {[%clk 0:03:04.3]} 11. Re1
{[%clk 0:03:02.7]} 11... c5 {[%clk 0:03:04.9]} 12. cxd5 {[%clk 0:03:01.1]} 12...
exd5 {[%clk 0:03:03.2]} 13. Ne5 {[%clk 0:03:00.2]} 13... Nxe5 {[%clk 0:02:51.7]}
14. dxe5 {[%clk 0:03:02.1]} 14... Ne8 {[%clk 0:02:52]} 15. Nb1 {[%clk
0:02:48.2]} 15... Nc7 {[%clk 0:02:49.2]} 16. e3 {[%clk 0:02:45.2]} 16... Bb7
{[%clk 0:02:24]} 17. Nc3 {[%clk 0:02:44.5]} 17... Qd7 {[%clk 0:02:22.8]} 18. Qd2
{[%clk 0:02:41.6]} 18... Rcd8 {[%clk 0:02:20.7]} 19. Rcd1 {[%clk 0:02:42]} 19...
Qe6 {[%clk 0:02:03.4]} 20. f4 {[%clk 0:02:41.9]} 20... f6 {[%clk 0:02:04.6]} 21.
exf6 {[%clk 0:02:39.5]} 21... Bxf6 {[%clk 0:02:04.9]} 22. h3 {[%clk 0:02:36.1]}
22... Rfe8 {[%clk 0:01:51.2]} 23. Kh2 {[%clk 0:02:35.3]} 23... b5 {[%clk
0:01:46.9]} 24. Qf2 {[%clk 0:02:34.6]} 24... b4 {[%clk 0:01:43.2]} 25. Na4
{[%clk 0:02:35.4]} 25... Bxb2 {[%clk 0:01:44.2]} 26. Nxc5 {[%clk 0:02:36.3]}
26... Qb6 {[%clk 0:01:32.5]} 27. Nxb7 {[%clk 0:02:36.7]} 27... Bc3 {[%clk
0:01:31.9]} 28. Nxd8 {[%clk 0:02:37]} 28... Bxe1 {[%clk 0:01:32.7]} 29. Qxe1
{[%clk 0:02:32.9]} 29... Rxd8 {[%clk 0:01:33.5]} 30. Qd2 {[%clk 0:02:32.1]}
30... a5 {[%clk 0:01:31.6]} 31. Qd4 {[%clk 0:02:32.4]} 31... Qb5 {[%clk
0:01:29.8]} 32. e4 {[%clk 0:02:29.1]} 32... Qe2 {[%clk 0:01:22.2]} 33. Rd2
{[%clk 0:02:29.7]} 33... Nb5 {[%clk 0:01:20.4]} 34. Rxe2 {[%clk 0:02:26.5]}
34... Nxd4 {[%clk 0:01:21]} 35. Rf2 {[%clk 0:02:22.5]} 35... dxe4 {[%clk
0:01:19]} 36. Bxe4 {[%clk 0:02:24.4]} 36... h6 {[%clk 0:01:18.3]} 37. g4 {[%clk
0:02:24.6]} 37... Nb5 {[%clk 0:01:18.6]} 38. Bf5 {[%clk 0:02:18.2]} 38... Kf7
{[%clk 0:01:17.3]} 39. g5 {[%clk 0:02:18.8]} 39... Nc3 {[%clk 0:01:13.4]} 40. h4
{[%clk 0:02:19.4]} 40... Rd1 {[%clk 0:01:09.8]} 41. Bg4 {[%clk 0:02:15.7]} 41...
Ra1 {[%clk 0:01:01.1]} 42. Bh5+ {[%clk 0:02:11.6]} 42... Ke7 {[%clk 0:00:59]}
43. f5 {[%clk 0:02:03]} 43... hxg5 {[%clk 0:00:59.4]} 44. hxg5 {[%clk
0:02:02.7]} 44... Rxa2 {[%clk 0:01:00.3]} 45. f6+ {[%clk 0:02:03.3]} 45... gxf6
{[%clk 0:01:01]} 46. gxf6+ {[%clk 0:02:05.2]} 46... Kf8 {[%clk 0:00:51.5]} 47.
Rxa2 {[%clk 0:02:03.3]} 47... Nxa2 {[%clk 0:00:52.4]} 48. Kg3 {[%clk 0:02:04.9]}
48... Nc1 {[%clk 0:00:45]} 49. Bd1 {[%clk 0:02:05.4]} 49... Kf7 {[%clk
0:00:46.4]} 50. Kf3 {[%clk 0:02:04.5]} 50... Kxf6 {[%clk 0:00:45.9]} 51. Ke4
{[%clk 0:02:05.6]} 51... Ke6 {[%clk 0:00:41.8]} 52. Kd4 {[%clk 0:02:06]} 52...
Kd6 {[%clk 0:00:42.2]} 53. Kc4 {[%clk 0:02:06.8]} 53... Kc6 {[%clk 0:00:43.1]}
54. Bf3+ {[%clk 0:02:07.4]} 54... Kb6 {[%clk 0:00:44.2]} 55. Bh5 {[%clk
0:02:06.9]} 55... Na2 {[%clk 0:00:40.2]} 56. Be8 {[%clk 0:02:08]} 56... Nc3
{[%clk 0:00:40.1]} 57. Bd7 {[%clk 0:02:08.1]} 57... Ne4 {[%clk 0:00:40.4]} 58.
Be6 {[%clk 0:02:02.5]} 58... Nf6 {[%clk 0:00:30.1]} 59. Kd4 {[%clk 0:02:00.7]}
59... Kb5 {[%clk 0:00:28.4]} 60. Bf7 {[%clk 0:01:59.9]} 60... Kb6 {[%clk
0:00:25.7]} 61. Be6 {[%clk 0:01:59.9]} 61... Ne8 {[%clk 0:00:25.4]} 62. Bd7
{[%clk 0:02:00]} 62... Nd6 {[%clk 0:00:24.8]} 63. Kd5 {[%clk 0:01:58.9]} 63...
Nb5 {[%clk 0:00:25.4]} 64. Kc4 {[%clk 0:01:57.4]} 64... Nc3 {[%clk 0:00:25.6]}
65. Bf5 {[%clk 0:01:55.7]} 65... Kc6 {[%clk 0:00:24.9]} 66. Bg6 {[%clk
0:01:54.7]} 66... Kd6 {[%clk 0:00:25.5]} 67. Bh7 {[%clk 0:01:48.3]} 67... Ke5
{[%clk 0:00:19.6]} 68. Bg8 {[%clk 0:01:46.8]} 68... Ke4 {[%clk 0:00:19.5]} 69.
Kc5 {[%clk 0:01:47.8]} 69... Kd3 {[%clk 0:00:19.3]} 70. Kb6 {[%clk 0:01:48.7]}
70... Na2 {[%clk 0:00:19.3]} 71. Kxa5 {[%clk 0:01:48.4]} 71... Kc3 {[%clk
0:00:20.6]} 72. Ka4 {[%clk 0:01:48.9]} 72... Nc1 {[%clk 0:00:21.4]} 73. Bf7
{[%clk 0:01:49.6]} 73... Nd3 {[%clk 0:00:21.5]} 74. Kb5 {[%clk 0:01:47.4]} 74...
Ne5 {[%clk 0:00:21.7]} 75. Bg8 {[%clk 0:01:48.4]} 75... Nf3 {[%clk 0:00:22.6]}
76. Bf7 {[%clk 0:01:47.6]} 76... Nd4+ {[%clk 0:00:22.6]} 77. Ka4 {[%clk
0:01:48.8]} 77... Nf5 {[%clk 0:00:22.2]} 78. Bg8 {[%clk 0:01:49]} 78... Ne3
{[%clk 0:00:23.1]} 79. Bf7 {[%clk 0:01:48.8]} 79... Nc2 {[%clk 0:00:19.1]} 80.
Kb5 {[%clk 0:01:41.1]} 80... Nd4+ {[%clk 0:00:18.2]} 81. Ka4 {[%clk 0:01:42.2]}
81... Nf5 {[%clk 0:00:17.6]} 82. Bg8 {[%clk 0:01:42]} 82... Nd6 {[%clk
0:00:17.4]} 83. Ka5 {[%clk 0:01:32.3]} 83... Ne4 {[%clk 0:00:15.5]} 84. Kb5
{[%clk 0:01:31.5]} 84... Nd2 {[%clk 0:00:10.4]} 85. Ka4 {[%clk 0:01:31.9]} 85...
Nxb3 {[%clk 0:00:10.6]} 86. Bxb3 {[%clk 0:01:31.6]} 86... Kb2 {[%clk 0:00:11.9]}
87. Kxb4 {[%clk 0:01:33.5]} 1/2-1/2

[Event "*** Titled Tuesday 3|2 Blitz"]
[Site "Chess.com"]
[Date "2015.03.03"]
[Round "9"]
[White "ChessPsych0"]
[Black "SuPeR_Fm"]
[Result "0-1"]
[WhiteElo "2065"]
[BlackElo "2341"]
[TimeControl "180+2"]
[EndTime "12:59:43 PST"]
[Termination "SuPeR_Fm won by resignation"]

1. d4 {[%clk 0:02:58.9]} 1... c5 {[%clk 0:02:57.5]} 2. d5 {[%clk 0:02:52.5]}
2... e5 {[%clk 0:02:58.3]} 3. e4 {[%clk 0:02:53.2]} 3... d6 {[%clk 0:02:59.3]}
4. Bb5+ {[%clk 0:02:53.8]} 4... Nd7 {[%clk 0:02:58.4]} 5. a4 {[%clk 0:02:53.8]}
5... Be7 {[%clk 0:02:59.6]} 6. Nf3 {[%clk 0:02:52.5]} 6... Nf6 {[%clk
0:02:52.9]} 7. Nc3 {[%clk 0:02:51.9]} 7... O-O {[%clk 0:02:54]} 8. O-O {[%clk
0:02:51.7]} 8... a6 {[%clk 0:02:54.4]} 9. Be2 {[%clk 0:02:50.3]} 9... Re8 {[%clk
0:02:56]} 10. Nd2 {[%clk 0:02:43.7]} 10... Nf8 {[%clk 0:02:56.4]} 11. Nc4 {[%clk
0:02:44.1]} 11... Ng6 {[%clk 0:02:57.1]} 12. Be3 {[%clk 0:02:40.9]} 12... Nf4
{[%clk 0:02:56.3]} 13. Bxf4 {[%clk 0:02:30.6]} 13... exf4 {[%clk 0:02:58.2]} 14.
e5 {[%clk 0:02:30.5]} 14... dxe5 {[%clk 0:02:58.3]} 15. Nxe5 {[%clk 0:02:31.1]}
15... Bf5 {[%clk 0:02:45.5]} 16. Qd2 {[%clk 0:02:27.6]} 16... Bd6 {[%clk
0:02:41]} 17. Nc4 {[%clk 0:02:27.6]} 17... Ne4 {[%clk 0:02:31.9]} 18. Nxe4
{[%clk 0:02:25]} 18... Bxe4 {[%clk 0:02:33.8]} 19. f3 {[%clk 0:02:07.4]} 19...
Bf5 {[%clk 0:02:25.5]} 20. Bd3 {[%clk 0:02:08.3]} 20... Bc8 {[%clk 0:02:08.3]}
21. Rfe1 {[%clk 0:02:00.5]} 21... Rf8 {[%clk 0:01:53.5]} 22. Nxd6 {[%clk
0:01:45.2]} 22... Qxd6 {[%clk 0:01:53.7]} 23. c4 {[%clk 0:01:46.2]} 23... Bd7
{[%clk 0:01:52]} 24. Re4 {[%clk 0:01:45.4]} 24... g5 {[%clk 0:01:52.4]} 25. a5
{[%clk 0:01:40]} 25... Rae8 {[%clk 0:01:53.2]} 26. Rae1 {[%clk 0:01:39.2]} 26...
Rxe4 {[%clk 0:01:54]} 27. Rxe4 {[%clk 0:01:30.7]} 27... Re8 {[%clk 0:01:40.3]}
28. Rxe8+ {[%clk 0:01:18.5]} 28... Bxe8 {[%clk 0:01:42.2]} 29. Qe1 {[%clk
0:01:16.2]} 29... Bd7 {[%clk 0:01:36.4]} 30. h4 {[%clk 0:01:00.7]} 30... h6
{[%clk 0:01:33.1]} 31. hxg5 {[%clk 0:00:51.3]} 31... hxg5 {[%clk 0:01:35]} 32.
Qe4 {[%clk 0:00:48.9]} 32... f5 {[%clk 0:01:28.1]} 33. Qe1 {[%clk 0:00:49.7]}
33... Qf6 {[%clk 0:01:22.4]} 34. Qc3 {[%clk 0:00:47.5]} 34... Qxc3 {[%clk
0:01:22.4]} 35. bxc3 {[%clk 0:00:49.4]} 35... Kf7 {[%clk 0:01:17.8]} 36. Bc2
{[%clk 0:00:50.2]} 36... Kf6 {[%clk 0:01:18.9]} 37. Kf2 {[%clk 0:00:51.5]} 37...
Ke5 {[%clk 0:01:20.4]} 38. Ke2 {[%clk 0:00:49.4]} 38... Be8 {[%clk 0:01:17.6]}
39. Kf2 {[%clk 0:00:49.8]} 39... Bd7 {[%clk 0:01:16.6]} 40. Ke2 {[%clk
0:00:50.9]} 40... Kd6 {[%clk 0:01:18.2]} 41. Kd3 {[%clk 0:00:49.2]} 41... Kc7
{[%clk 0:01:15.1]} 42. Kd2 {[%clk 0:00:47.4]} 42... b6 {[%clk 0:01:16.7]} 43.
axb6+ {[%clk 0:00:48.2]} 43... Kxb6 {[%clk 0:01:18.6]} 44. Kc1 {[%clk 0:00:48]}
44... Kc7 {[%clk 0:01:08.1]} 45. Kb2 {[%clk 0:00:43.3]} 45... Kd6 {[%clk
0:01:09.6]} 46. Ka3 {[%clk 0:00:44.5]} 46... g4 {[%clk 0:01:07.5]} 47. Ba4
{[%clk 0:00:42]} 47... Bc8 {[%clk 0:01:02.7]} 48. Bc6 {[%clk 0:00:35.3]} 48...
Kc7 {[%clk 0:00:45.7]} 49. Ka4 {[%clk 0:00:34.6]} 49... Kb6 {[%clk 0:00:46.9]}
50. Be8 {[%clk 0:00:32.1]} 50... g3 {[%clk 0:00:46.8]} 51. d6 {[%clk 0:00:26.7]}
51... Be6 {[%clk 0:00:47.3]} 52. d7 {[%clk 0:00:23.9]} 52... Kc7 {[%clk
0:00:47.9]} 53. d8=Q+ {[%clk 0:00:08]} 53... Kxd8 {[%clk 0:00:47]} 54. Bg6
{[%clk 0:00:08.9]} 54... Bxc4 {[%clk 0:00:30.4]} 55. Bxf5 {[%clk 0:00:09.2]}
55... Be2 {[%clk 0:00:29.2]} 56. Bh3 {[%clk 0:00:07.3]} 56... Kc7 {[%clk
0:00:29.1]} 57. Ka5 {[%clk 0:00:06.8]} 57... Kd6 {[%clk 0:00:27.4]} 58. Ka4
{[%clk 0:00:07.5]} 58... Kd5 {[%clk 0:00:26.1]} 59. Kb3 {[%clk 0:00:08.5]} 59...
a5 {[%clk 0:00:27.2]} 60. Ka4 {[%clk 0:00:06.4]} 60... Kc4 {[%clk 0:00:25.3]}
61. Kxa5 {[%clk 0:00:07.8]} 61... Kxc3 {[%clk 0:00:25.3]} 62. Kb6 {[%clk
0:00:09.5]} 62... Kd4 {[%clk 0:00:26]} 63. Kc6 {[%clk 0:00:08.1]} 63... c4
{[%clk 0:00:27.5]} 64. Kd6 {[%clk 0:00:09.5]} 64... c3 {[%clk 0:00:29.1]} 65.
Bf5 {[%clk 0:00:10.9]} 65... Bxf3 {[%clk 0:00:30.2]} 66. gxf3 {[%clk 0:00:11.4]}
66... g2 {[%clk 0:00:31]} 67. Bc2 {[%clk 0:00:11.6]} 67... g1=Q {[%clk
0:00:30.5]} 68. Be4 {[%clk 0:00:12.3]} 68... Qe3 {[%clk 0:00:24.8]} 69. Ke6
{[%clk 0:00:12.5]} 0-1

[Event "*** Titled Tuesday 3|2 Blitz"]
[Site "Chess.com"]
[Date "2015.03.03"]
[Round "9"]
[White "Fandorine"]
[Black "Tilicheev_Viacheslav"]
[Result "1/2-1/2"]
[WhiteElo "2566"]
[BlackElo "2519"]
[TimeControl "180+2"]
[EndTime "13:00:38 PST"]
[Termination "Game drawn by agreement"]

1. b3 {[%clk 0:03:00]} 1... e5 {[%clk 0:02:55]} 2. Bb2 {[%clk 0:03:01.2]} 2...
Nc6 {[%clk 0:02:56.5]} 3. e3 {[%clk 0:03:02.7]} 3... Nf6 {[%clk 0:02:56]} 4. Bb5
{[%clk 0:03:03.9]} 4... Bd6 {[%clk 0:02:57.4]} 5. Na3 {[%clk 0:03:05]} 5... Na5
{[%clk 0:02:58.3]} 6. Be2 {[%clk 0:03:05.9]} 6... O-O {[%clk 0:02:58.5]} 7. Nb5
{[%clk 0:03:02.1]} 7... Qe7 {[%clk 0:02:52.8]} 8. Nxd6 {[%clk 0:02:57.6]} 8...
Qxd6 {[%clk 0:02:54.7]} 9. Nf3 {[%clk 0:02:53.6]} 9... Re8 {[%clk 0:02:55.3]}
10. O-O {[%clk 0:02:54.7]} 10... Nc6 {[%clk 0:02:51.6]} 11. d4 {[%clk
0:02:45.5]} 11... exd4 {[%clk 0:02:49.5]} 12. Nxd4 {[%clk 0:02:46.7]} 12... Nxd4
{[%clk 0:02:50.7]} 13. Bxd4 {[%clk 0:02:48.3]} 13... b6 {[%clk 0:02:48.2]} 14.
Bf3 {[%clk 0:02:46]} 14... Rb8 {[%clk 0:02:49.5]} 15. c4 {[%clk 0:02:45.7]}
15... Qe7 {[%clk 0:02:42.8]} 16. Rc1 {[%clk 0:02:41.9]} 16... d6 {[%clk
0:02:43.9]} 17. Qc2 {[%clk 0:02:35.5]} 17... Bb7 {[%clk 0:02:43.8]} 18. Bxb7
{[%clk 0:02:35.2]} 18... Rxb7 {[%clk 0:02:45.7]} 19. Rfd1 {[%clk 0:02:36.9]}
19... a5 {[%clk 0:02:45.3]} 20. Qf5 {[%clk 0:02:28.3]} 20... Ne4 {[%clk
0:02:42.4]} 21. Qg4 {[%clk 0:02:20]} 21... f6 {[%clk 0:02:37.9]} 22. Qf5 {[%clk
0:02:11.3]} 22... Qe6 {[%clk 0:02:38.1]} 23. Qd5 {[%clk 0:01:51.2]} 23... Rbb8
{[%clk 0:02:13.3]} 24. f3 {[%clk 0:01:51.1]} 24... Nc5 {[%clk 0:02:13.6]} 25. e4
{[%clk 0:01:52.5]} 25... Kf7 {[%clk 0:02:09.3]} 26. Kf2 {[%clk 0:01:50.4]} 26...
Rbc8 {[%clk 0:01:56.1]} 27. h4 {[%clk 0:01:44.9]} 27... c6 {[%clk 0:01:51.4]}
28. Qxe6+ {[%clk 0:01:46.1]} 28... Kxe6 {[%clk 0:01:52.4]} 29. Be3 {[%clk
0:01:47.6]} 29... Red8 {[%clk 0:01:40.8]} 30. Rd2 {[%clk 0:01:46.9]} 30... Rd7
{[%clk 0:01:41.5]} 31. Rcd1 {[%clk 0:01:47.1]} 31... Rcd8 {[%clk 0:01:33.8]} 32.
g4 {[%clk 0:01:42.3]} 32... d5 {[%clk 0:01:22.7]} 33. Bxc5 {[%clk 0:01:28.5]}
33... bxc5 {[%clk 0:01:23]} 34. cxd5+ {[%clk 0:01:12.6]} 34... cxd5 {[%clk
0:01:24.9]} 35. Ke3 {[%clk 0:01:14]} 35... d4+ {[%clk 0:01:20.3]} 36. Kd3 {[%clk
0:01:05.8]} 36... a4 {[%clk 0:01:21.4]} 37. Rc1 {[%clk 0:01:03.1]} 37... axb3
{[%clk 0:01:20.9]} 38. axb3 {[%clk 0:01:04]} 38... Rb7 {[%clk 0:01:22.6]} 39.
Rxc5 {[%clk 0:00:56]} 39... Rxb3+ {[%clk 0:01:22.3]} 40. Ke2 {[%clk 0:00:57.4]}
40... Rd7 {[%clk 0:01:05.2]} 41. Kf2 {[%clk 0:00:53.5]} 41... h6 {[%clk
0:00:54.7]} 42. Rc4 {[%clk 0:00:48.1]} 42... Ke5 {[%clk 0:00:50.8]} 43. Rc5+
{[%clk 0:00:46.4]} 43... Ke6 {[%clk 0:00:52]} 44. h5 {[%clk 0:00:47.6]} 44...
Rb4 {[%clk 0:00:37.1]} 45. Kg3 {[%clk 0:00:44.5]} 45... Ra7 {[%clk 0:00:18.9]}
46. Rd5 {[%clk 0:00:36.4]} 46... Raa4 {[%clk 0:00:19.8]} 47. Kf4 {[%clk
0:00:34.1]} 47... Rc4 {[%clk 0:00:15.6]} 48. Rd3 {[%clk 0:00:20.6]} 48... Rcb4
{[%clk 0:00:15.1]} 49. Rd8 {[%clk 0:00:18.2]} 49... Ke7 {[%clk 0:00:14.5]} 50.
Rd5 {[%clk 0:00:17.2]} 50... Ke6 {[%clk 0:00:15.7]} 51. Rd1 {[%clk 0:00:18.9]}
51... Rc4 {[%clk 0:00:16.5]} 52. Rb1 {[%clk 0:00:19.9]} 52... Rcb4 {[%clk
0:00:12.6]} 53. Rd1 {[%clk 0:00:19.6]} 53... Rc4 {[%clk 0:00:13.6]} 54. Kg3
{[%clk 0:00:21.3]} 54... Ke7 {[%clk 0:00:13.2]} 55. Rd2 {[%clk 0:00:21.1]} 55...
Ke6 {[%clk 0:00:14.2]} 56. Kf4 {[%clk 0:00:21.7]} 56... Rcb4 {[%clk 0:00:14.2]}
57. Rc2 {[%clk 0:00:22.7]} 57... Rc4 {[%clk 0:00:15.4]} 58. Rb2 {[%clk
0:00:24.1]} 58... Rcb4 {[%clk 0:00:16.8]} 59. Rd2 {[%clk 0:00:25.3]} 59... Rc4
{[%clk 0:00:18]} 60. Kg3 {[%clk 0:00:22.9]} 60... Rcb4 {[%clk 0:00:19.2]} 61.
Rd3 {[%clk 0:00:23.8]} 61... Rc4 {[%clk 0:00:20.4]} 62. Kf4 {[%clk 0:00:21.7]}
62... Rab4 {[%clk 0:00:20.3]} 63. Ra5 {[%clk 0:00:22.3]} 63... Ra4 {[%clk
0:00:20.8]} 64. Rb5 {[%clk 0:00:12.7]} 64... Rab4 {[%clk 0:00:20.5]} 65. Rd5
{[%clk 0:00:11.4]} 65... Ke7 {[%clk 0:00:21.5]} 66. Rd1 {[%clk 0:00:12.5]} 66...
Ke6 {[%clk 0:00:21.8]} 67. Rf5 {[%clk 0:00:13]} 67... Rc3 {[%clk 0:00:21]} 68.
Rd5 {[%clk 0:00:12.8]} 68... Rbb3 {[%clk 0:00:22]} 69. Rf1 {[%clk 0:00:13.6]}
69... Rd3 {[%clk 0:00:21.2]} 70. Rd8 {[%clk 0:00:13.4]} 70... Ke7 {[%clk
0:00:21.8]} 71. Rd5 {[%clk 0:00:14.4]} 71... Kf7 {[%clk 0:00:22.8]} 72. e5
{[%clk 0:00:11.8]} 72... fxe5+ {[%clk 0:00:22.6]} 73. Rxe5 {[%clk 0:00:13.3]}
73... Kg8 {[%clk 0:00:13.7]} 74. Rf5 {[%clk 0:00:11]} 74... Kh7 {[%clk
0:00:13.6]} 75. Ke4 {[%clk 0:00:11.3]} 75... Rd2 {[%clk 0:00:14.1]} 76. Ra1
{[%clk 0:00:09.1]} 76... Re3+ {[%clk 0:00:14.7]} 77. Kd5 {[%clk 0:00:06.9]}
77... Rdd3 {[%clk 0:00:13.1]} 78. f4 {[%clk 0:00:05.9]} 78... Rg3 {[%clk
0:00:14.3]} 79. g5 {[%clk 0:00:06.5]} 79... hxg5 {[%clk 0:00:14.1]} 80. fxg5
{[%clk 0:00:08.3]} 80... Rdf3 {[%clk 0:00:11.9]} 81. Rxf3 {[%clk 0:00:06.8]}
81... Rxf3 {[%clk 0:00:13.8]} 82. Kxd4 {[%clk 0:00:07.9]} 82... Rh3 {[%clk
0:00:10.8]} 83. Ke4 {[%clk 0:00:08.8]} 83... Rxh5 {[%clk 0:00:11]} 84. Kf4
{[%clk 0:00:10.4]} 84... Rh2 {[%clk 0:00:12.2]} 85. Ra6 {[%clk 0:00:10.8]}
1/2-1/2